fUSD/lending_fUSD_20251210
["ID","MTS","AMOUNT","RATE_DAILY","PERIOD"]
[398069042,1765354242961,-500.0,0.00014052,2]
[398069043,1765354242972,-812.98,0.00014053,2]
[398069044,1765354242983,-500.0,0.00014053,2]
[398069045,1765354242994,-765.54,0.00014053,2]
[398069046,1765354243005,-500.0,0.00014053,2]
[398069047,1765354243016,-500.0,0.00014053,2]
[398069048,1765354243026,-681.71,0.00014053,2]
[398069049,1765354243036,-500.0,0.00014053,2]
[398069050,1765354243047,-500.0,0.00014053,2]
[398069051,1765354243057,-500.0,0.00014053,2]
[398069052,1765354243067,-500.0,0.00014053,2]
[398069053,1765354243078,-587.15,0.00014053,2]
[398069054,1765354243088,-500.0,0.00014053,2]
[398069055,1765354243098,-500.0,0.00014053,2]
[398069056,1765354243108,-537.89,0.00014053,2]
[398069057,1765354243118,-500.0,0.00014053,2]
[398069058,1765354243129,-1478.35,0.00014053,2]
[398069059,1765354243139,-500.0,0.00014053,2]
[398069060,1765354243149,-500.0,0.00014053,2]
[398069061,1765354243160,-500.0,0.00014053,2]
[398069062,1765354243170,-526.98,0.00014053,2]
[398069063,1765354243180,-645.97456182,0.00014053,2]
[398069064,1765354243191,-500.0,0.00014053,2]
[398069065,1765354243201,-628.72,0.00014053,2]
[398069066,1765354243212,-500.0,0.00014053,2]
[398069067,1765354243222,-223.43721929,0.00014053,2]
[398069071,1765354243435,-488.29278071,0.00014053,2]
[398069072,1765354243482,-475.48659767,0.00014053,2]
[398069073,1765354243508,-24.51340233,0.00014053,2]
[398069074,1765354243519,-500.0,0.00014053,2]
[398069075,1765354243529,-542.56,0.00014053,2]
[398069076,1765354243539,-500.0,0.00014053,2]
[398069077,1765354243550,-287.28659767,0.00014053,2]
[398069078,1765354243611,-212.71340233,0.00014053,2]
[398069079,1765354243622,-500.0,0.00014053,2]
[398069080,1765354243636,-500.0,0.00014053,2]
[398069081,1765354243646,-500.0,0.00014053,2]
[398069082,1765354243657,-597.52,0.00014053,2]
[398069083,1765354243667,-500.0,0.00014053,2]
[398069084,1765354243678,-580.6,0.00014053,2]
[398069085,1765354243688,-514.92,0.00014053,2]
[398069086,1765354243700,-812.01,0.00014053,2]
[398069087,1765354243711,-500.0,0.00014053,2]
[398069088,1765354243722,-806.25,0.00014053,2]
[398069089,1765354243733,-500.0,0.00014053,2]
[398069090,1765354243744,-545.16,0.00014053,2]
[398069091,1765354243755,-684.77,0.00014053,2]
[398069092,1765354243766,-500.0,0.00014053,2]
[398069093,1765354243776,-994.34,0.00014053,2]
[398069094,1765354243787,-719.88,0.00014053,2]
[398069095,1765354243797,-577.08,0.00014053,2]
[398069096,1765354243807,-500.0,0.00014053,2]
[398069097,1765354243817,-500.0,0.00014053,2]
[398069098,1765354243828,-500.0,0.00014053,2]
[398069099,1765354243839,-766.68,0.00014053,2]
[398069100,1765354243849,-500.0,0.00014053,2]
[398069101,1765354243860,-500.0,0.00014053,2]
[398069102,1765354243871,-730.97,0.00014053,2]
[398069103,1765354243881,-656.47,0.00014053,2]
[398069104,1765354243892,-500.0,0.00014053,2]
[398069105,1765354243903,-720.46,0.00014053,2]
[398069106,1765354243913,-3164.58,0.00014053,2]
[398069107,1765354243923,-500.0,0.0001406,2]
[398069108,1765354243933,-500.0,0.0001406,2]
[398069109,1765354243943,-333.56863627,0.0001406,2]
[398069110,1765354243953,-500.0,0.0001406,2]
[398069111,1765354243963,-500.0,0.0001406,2]
[398069112,1765354243974,-500.0,0.0001406,2]
[398069113,1765354243984,-500.0,0.0001406,2]
[398069114,1765354243994,-500.0,0.0001406,2]
[398069115,1765354244004,-500.0,0.0001406,2]
[398069116,1765354244014,-500.0,0.0001406,2]
[398069117,1765354244025,-500.0,0.0001406,2]
[398069118,1765354244035,-500.0,0.0001406,2]
[398069119,1765354244046,-669.24,0.0001406,2]
[398069120,1765354244056,-500.0,0.0001406,2]
[398069121,1765354244067,-500.0,0.0001406,2]
[398069122,1765354244078,-500.0,0.0001406,2]
[398069123,1765354244088,-500.0,0.0001406,2]
[398069124,1765354244099,-500.0,0.0001406,2]
[398069125,1765354244110,-500.0,0.0001406,2]
[398069126,1765354244121,-500.0,0.0001406,2]
[398069127,1765354244131,-500.0,0.0001406,2]
[398069128,1765354244143,-556.7,0.0001406,2]
[398069129,1765354244153,-500.0,0.0001406,2]
[398069130,1765354244164,-500.0,0.0001406,2]
[398069131,1765354244175,-500.0,0.0001406,2]
[398069132,1765354244185,-500.0,0.0001406,2]
[398069133,1765354244196,-500.0,0.0001406,2]
[398069134,1765354244206,-566.04,0.0001406,2]
[398069135,1765354244217,-500.0,0.0001406,2]
[398069136,1765354244228,-302.50635286,0.0001406,2]
[398069137,1765354244239,-500.0,0.0001406,2]
[398069138,1765354244249,-500.0,0.0001406,2]
[398069139,1765354244260,-514.66650474,0.0001406,2]
[398069140,1765354244269,-500.0,0.0001406,2]
[398069141,1765354244279,-500.0,0.0001406,2]
[398069142,1765354244289,-605.72,0.0001406,2]
[398069143,1765354244300,-500.0,0.0001406,2]
[398069144,1765354244310,-500.0,0.0001406,2]
[398069145,1765354244320,-500.0,0.0001406,2]
[398069146,1765354244330,-500.0,0.0001406,2]
[398069148,1765354244340,-500.0,0.0001406,2]
[398069150,1765354244350,-500.0,0.0001406,2]
[398069152,1765354244361,-500.0,0.0001406,2]
[398069154,1765354244371,-500.0,0.0001406,2]
[398069156,1765354244381,-500.0,0.0001406,2]
[398069158,1765354244392,-500.0,0.0001406,2]
[398069160,1765354244402,-565.574164,0.0001406,2]
[398069162,1765354244412,-500.0,0.0001406,2]
[398069164,1765354244422,-500.0,0.0001406,2]
[398069166,1765354244432,-500.0,0.0001406,2]
[398069168,1765354244443,-630.32,0.0001406,2]
[398069169,1765354244452,-500.0,0.0001406,2]
[398069170,1765354244462,-500.0,0.0001406,2]
[398069171,1765354244473,-500.0,0.0001406,2]
[398069172,1765354244484,-500.0,0.0001406,2]
[398069173,1765354244494,-500.0,0.0001406,2]
[398069174,1765354244504,-500.0,0.0001406,2]
[398069175,1765354244514,-500.0,0.0001406,2]
[398069176,1765354244524,-500.0,0.0001406,2]
[398069177,1765354244534,-529.94506706,0.0001406,2]
[398069178,1765354244544,-357.16511028,0.0001406,2]
[398069179,1765354244554,-500.0,0.0001406,2]
[398069180,1765354244564,-500.0,0.0001406,2]
[398069181,1765354244575,-500.0,0.0001406,2]
[398069182,1765354244585,-500.0,0.0001406,2]
[398069183,1765354244595,-500.0,0.0001406,2]
[398069184,1765354244605,-500.0,0.0001406,2]
[398069185,1765354244614,-500.0,0.0001406,2]
[398069186,1765354244626,-500.0,0.0001406,2]
[398069187,1765354244636,-500.0,0.0001406,2]
[398069188,1765354244646,-500.0,0.0001406,2]
[398069189,1765354244656,-500.0,0.0001406,2]
[398069190,1765354244666,-500.0,0.0001406,2]
[398069191,1765354244676,-500.0,0.0001406,2]
[398069192,1765354244686,-500.0,0.0001406,2]
[398069193,1765354244696,-806.07,0.0001406,2]
[398069194,1765354244706,-163.10355589,0.0001406,2]
[398069195,1765354244716,-500.0,0.0001406,2]
[398069196,1765354244726,-500.0,0.0001406,2]
[398069197,1765354244736,-500.0,0.0001406,2]
[398069198,1765354244746,-500.0,0.0001406,2]
[398069199,1765354244756,-160.32114725,0.0001406,2]
[398069200,1765354244766,-500.0,0.0001406,2]
[398069201,1765354244776,-162.70651816,0.0001406,2]
[398069202,1765354244787,-500.0,0.0001406,2]
[398069203,1765354244797,-500.0,0.0001406,2]
[398069204,1765354244806,-756.09,0.0001406,2]
[398069205,1765354244817,-500.0,0.0001406,2]
[398069206,1765354244828,-500.0,0.0001406,2]
[398069207,1765354244838,-500.0,0.0001406,2]
[398069208,1765354244848,-631.99,0.0001406,2]
[398069209,1765354244858,-500.0,0.0001406,2]
[398069210,1765354244868,-500.0,0.0001406,2]
[398069211,1765354244878,-500.0,0.0001406,2]
[398069212,1765354244888,-500.0,0.0001406,2]
[398069213,1765354244899,-500.0,0.0001406,2]
[398069214,1765354244910,-531.84,0.0001406,2]
[398069215,1765354244920,-500.0,0.0001406,2]
[398069216,1765354244929,-500.0,0.0001406,2]
[398069217,1765354244939,-500.0,0.0001406,2]
[398069218,1765354244951,-581.67,0.0001406,2]
[398069219,1765354244962,-500.0,0.0001406,2]
[398069220,1765354244973,-569.98,0.0001406,2]
[398069221,1765354244984,-155.80645286,0.0001406,2]
[398069222,1765354244993,-500.0,0.0001406,2]
[398069223,1765354245004,-500.0,0.0001406,2]
[398069224,1765354245015,-500.0,0.0001406,2]
[398069225,1765354245025,-500.0,0.0001406,2]
[398069226,1765354245035,-500.0,0.0001406,2]
[398069227,1765354245046,-500.0,0.0001406,2]
[398069228,1765354245056,-642.03,0.0001406,2]
[398069229,1765354245066,-500.0,0.0001406,2]
[398069230,1765354245077,-579.84,0.0001406,2]
[398069231,1765354245087,-500.0,0.0001406,2]
[398069232,1765354245098,-500.0,0.0001406,2]
[398069233,1765354245109,-500.0,0.0001406,2]
[398069234,1765354245119,-500.0,0.0001406,2]
[398069235,1765354245129,-500.0,0.0001406,2]
[398069236,1765354245140,-500.0,0.0001406,2]
[398069237,1765354245150,-500.0,0.0001406,2]
[398069238,1765354245160,-500.0,0.0001406,2]
[398069239,1765354245170,-500.0,0.0001406,2]
[398069240,1765354245180,-508.10848522,0.0001406,2]
[398069241,1765354245190,-500.0,0.0001406,2]
[398069242,1765354245200,-500.0,0.0001406,2]
[398069243,1765354245211,-500.0,0.0001406,2]
[398069244,1765354245221,-608.43,0.0001406,2]
[398069245,1765354245230,-500.0,0.0001406,2]
[398069246,1765354245240,-500.0,0.0001406,2]
[398069247,1765354245250,-500.0,0.0001406,2]
[398069248,1765354245259,-500.0,0.0001406,2]
[398069249,1765354245269,-500.0,0.0001406,2]
[398069250,1765354245279,-500.0,0.0001406,2]
[398069251,1765354245288,-500.0,0.0001406,2]
[398069252,1765354245298,-598.47,0.0001406,2]
[398069253,1765354245307,-509.89,0.0001406,2]
[398069254,1765354245317,-557.36,0.0001406,2]
[398069255,1765354245327,-1166.2,0.0001406,2]
[398069256,1765354245337,-500.0,0.0001406,2]
[398069257,1765354245346,-500.0,0.0001406,2]
[398069258,1765354245356,-500.0,0.0001406,2]
[398069259,1765354245365,-500.0,0.0001406,2]
[398069260,1765354245375,-500.0,0.0001406,2]
[398069261,1765354245384,-500.0,0.0001406,2]
[398069262,1765354245394,-500.0,0.0001406,2]
[398069263,1765354245405,-500.0,0.0001406,2]
[398069264,1765354245415,-500.0,0.0001406,2]
[398069265,1765354245425,-500.0,0.0001406,2]
[398069266,1765354245435,-500.0,0.0001406,2]
[398069267,1765354245445,-500.0,0.0001406,2]
[398069268,1765354245456,-632.19,0.0001406,2]
[398069269,1765354245465,-500.0,0.0001406,2]
[398069270,1765354245475,-500.0,0.0001406,2]
[398069271,1765354245485,-500.0,0.0001406,2]
[398069272,1765354245494,-1132.92,0.0001406,2]
[398069273,1765354245504,-422.7511989,0.0001406,2]
[398069274,1765354245513,-500.0,0.0001406,2]
[398069275,1765354245523,-500.0,0.0001406,2]
[398069276,1765354245532,-500.0,0.0001406,2]
[398069277,1765354245541,-500.0,0.0001406,2]
[398069278,1765354245551,-655.15,0.0001406,2]
[398069279,1765354245560,-617.42,0.0001406,2]
[398069280,1765354245570,-500.0,0.0001406,2]
[398069281,1765354245579,-500.0,0.0001406,2]
[398069282,1765354245589,-500.0,0.0001406,2]
[398069283,1765354245599,-500.0,0.0001406,2]
[398069284,1765354245609,-507.21,0.0001406,2]
[398069285,1765354245619,-500.0,0.0001406,2]
[398069286,1765354245633,-744.39,0.0001406,2]
[398069287,1765354245643,-500.0,0.0001406,2]
[398069288,1765354245652,-500.0,0.0001406,2]
[398069289,1765354245662,-500.0,0.0001406,2]
[398069290,1765354245674,-583.12,0.0001406,2]
[398069291,1765354245684,-578.13927546,0.0001406,2]
[398069292,1765354245693,-626.78,0.0001406,2]
[398069293,1765354245704,-500.0,0.0001406,2]
[398069294,1765354245714,-500.0,0.0001406,2]
[398069295,1765354245724,-820.93,0.0001406,2]
[398069296,1765354245734,-500.0,0.0001406,2]
[398069297,1765354245744,-500.0,0.0001406,2]
[398069298,1765354245758,-500.0,0.0001406,2]
[398069299,1765354245767,-500.0,0.0001406,2]
[398069300,1765354245777,-1199.96,0.0001406,2]
[398069301,1765354245787,-504.63464245,0.0001406,2]
[398069302,1765354245796,-1410.89,0.0001406,2]
[398069303,1765354245806,-500.0,0.0001406,2]
[398069304,1765354245815,-500.0,0.0001406,2]
[398069305,1765354245824,-1004.49,0.0001406,2]
[398069306,1765354245834,-500.0,0.0001406,2]
[398069307,1765354245844,-590.38,0.0001406,2]
[398069308,1765354245854,-500.0,0.0001406,2]
[398069309,1765354245864,-500.0,0.0001406,2]
[398069310,1765354245873,-500.0,0.0001406,2]
[398069311,1765354245883,-500.0,0.0001406,2]
[398069312,1765354245892,-500.0,0.0001406,2]
[398069313,1765354245902,-500.0,0.0001406,2]
[398069314,1765354245911,-500.0,0.0001406,2]
[398069315,1765354245921,-500.0,0.0001406,2]
[398069316,1765354245931,-629.89,0.0001406,2]
[398069317,1765354245942,-500.0,0.0001406,2]
[398069318,1765354245953,-473.76902329,0.0001406,2]
[398069319,1765354245962,-500.0,0.0001406,2]
[398069320,1765354245972,-500.0,0.0001406,2]
[398069321,1765354245981,-500.0,0.0001406,2]
[398069322,1765354245990,-547.12,0.0001406,2]
[398069323,1765354245999,-514.70201491,0.0001406,2]
[398069324,1765354246008,-500.0,0.0001406,2]
[398069325,1765354246018,-543.06,0.0001406,2]
[398069326,1765354246028,-500.0,0.0001406,2]
[398069327,1765354246037,-500.0,0.0001406,2]
[398069328,1765354246046,-500.0,0.0001406,2]
[398069329,1765354246056,-500.0,0.0001406,2]
[398069330,1765354246065,-500.0,0.0001406,2]
[398069331,1765354246074,-500.0,0.0001406,2]
[398069332,1765354246083,-500.0,0.0001406,2]
[398069333,1765354246092,-500.0,0.0001406,2]
[398069334,1765354246101,-500.0,0.0001406,2]
[398069335,1765354246111,-500.0,0.0001406,2]
[398069336,1765354246120,-500.0,0.0001406,2]
[398069337,1765354246129,-500.0,0.0001406,2]
[398069338,1765354246139,-565.34,0.0001406,2]
[398069339,1765354246148,-500.0,0.0001406,2]
[398069340,1765354246158,-500.0,0.0001406,2]
[398069341,1765354246167,-516.1,0.0001406,2]
[398069342,1765354246176,-908.24,0.0001406,2]
[398069343,1765354246185,-500.0,0.0001406,2]
[398069344,1765354246195,-500.0,0.0001406,2]
[398069345,1765354246206,-500.0,0.0001406,2]
[398069346,1765354246216,-1556.05,0.0001406,2]
[398069347,1765354246225,-577.69,0.0001406,2]
[398069348,1765354246235,-500.0,0.0001406,2]
[398069349,1765354246244,-500.0,0.0001406,2]
[398069350,1765354246254,-235.68768415,0.0001406,2]
[398069351,1765354246264,-500.0,0.0001406,2]
[398069352,1765354246273,-500.0,0.0001406,2]
[398069353,1765354246283,-500.0,0.0001406,2]
[398069354,1765354246293,-500.33,0.0001406,2]
[398069355,1765354246303,-556.53,0.0001406,2]
[398069356,1765354246314,-1170.8,0.0001406,2]
[398069357,1765354246325,-402.91631164,0.0001406,2]
[398069358,1765354246335,-502.75437448,0.0001406,2]
[398069359,1765354246345,-1221.69,0.0001406,2]
[398069360,1765354246354,-232.67932787,0.0001406,2]
[398069361,1765354246364,-500.0,0.0001406,2]
[398069362,1765354246373,-500.0,0.0001406,2]
[398069363,1765354246382,-631.08,0.0001406,2]
[398069364,1765354246392,-500.0,0.0001406,2]
[398069365,1765354246401,-405.0653746,0.0001406,2]
[398069366,1765354246410,-647.1,0.0001406,2]
[398069367,1765354246420,-500.0,0.0001406,2]
[398069368,1765354246430,-595.91,0.0001406,2]
[398069369,1765354246439,-520.07,0.0001406,2]
[398069370,1765354246449,-616.7852322,0.0001406,2]
[398069371,1765354246459,-500.0,0.0001406,2]
[398069372,1765354246468,-500.0,0.0001406,2]
[398069373,1765354246478,-561.72,0.0001406,2]
[398069374,1765354246487,-3947.99,0.0001406,2]
[398069375,1765354246498,-500.0,0.0001406,2]
[398069376,1765354246509,-500.0,0.0001406,2]
[398069377,1765354246518,-500.0,0.0001406,2]
[398069378,1765354246528,-500.0,0.0001406,2]
[398069379,1765354246538,-500.0,0.0001406,2]
[398069380,1765354246547,-500.0,0.0001406,2]
[398069381,1765354246557,-500.0,0.0001406,2]
[398069382,1765354246566,-500.0,0.0001406,2]
[398069383,1765354246576,-891.7010633,0.0001406,2]
[398069384,1765354246600,-1565.3689367,0.0001406,2]
[398069385,1765354246610,-500.0,0.0001406,2]
[398069386,1765354246620,-291.1398692,0.0001406,2]
[398069387,1765354246634,-652.59,0.0001406,2]
[398069388,1765354246643,-351.10744482,0.0001406,2]
[398069389,1765354246655,-148.89255518,0.0001406,2]
[398069390,1765354246665,-500.0,0.0001406,2]
[398069391,1765354246675,-500.0,0.0001406,2]
[398069392,1765354246685,-500.0,0.0001406,2]
[398069393,1765354246695,-423.22168018,0.0001406,2]
[398069394,1765354246704,-500.0,0.0001406,2]
[398069395,1765354246713,-326.33215429,0.0001406,2]
[398069396,1765354246724,-306.96782944,0.0001406,2]
[398069401,1765354247597,-344.0,0.00013216,2]
[398069402,1765354247607,-86.80222033,0.00014053,2]
[398069403,1765354247730,-1729.36777967,0.00014053,2]
[398069404,1765354247740,-210.35001627,0.0001406,2]
[398069405,1765354247750,-500.0,0.0001406,2]
[398069406,1765354247759,-500.0,0.0001406,2]
[398069407,1765354247768,-500.0,0.0001406,2]
[398069408,1765354247778,-627.24,0.0001406,2]
[398069409,1765354247787,-500.0,0.0001406,2]
[398069410,1765354247796,-500.0,0.0001406,2]
[398069411,1765354247806,-500.0,0.0001406,2]
[398069412,1765354247816,-500.0,0.0001406,2]
[398069413,1765354247825,-500.0,0.0001406,2]
[398069414,1765354247835,-500.0,0.0001406,2]
[398069415,1765354247844,-500.0,0.0001406,2]
[398069416,1765354247853,-500.0,0.0001406,2]
[398069417,1765354247863,-500.0,0.0001406,2]
[398069418,1765354247873,-500.0,0.0001406,2]
[398069419,1765354247882,-576.6812377,0.0001406,2]
[398069420,1765354247893,-500.0,0.0001406,2]
[398069421,1765354247903,-500.0,0.0001406,2]
[398069422,1765354247914,-233.47157335,0.0001406,2]
[398069423,1765354247926,-266.52842665,0.0001406,2]
[398069424,1765354247937,-500.0,0.0001406,2]
[398069425,1765354247947,-500.0,0.0001406,2]
[398069426,1765354247956,-500.0,0.0001406,2]
[398069427,1765354247967,-500.0,0.0001406,2]
[398069428,1765354247976,-500.0,0.0001406,2]
[398069429,1765354247986,-500.0,0.0001406,2]
[398069430,1765354247995,-500.0,0.0001406,2]
[398069431,1765354248006,-500.0,0.0001406,2]
[398069432,1765354248016,-500.0,0.0001406,2]
[398069433,1765354248026,-500.0,0.0001406,2]
[398069434,1765354248037,-179.93279102,0.0001406,2]
[398069435,1765354248046,-500.0,0.0001406,2]
[398069436,1765354248056,-500.0,0.0001406,2]
[398069437,1765354248066,-500.0,0.0001406,2]
[398069438,1765354248077,-551.58733099,0.0001406,2]
[398069439,1765354248087,-1315.33,0.0001406,2]
[398069440,1765354248097,-520.07,0.0001406,2]
[398069441,1765354248107,-503.20819836,0.0001406,2]
[398069442,1765354248116,-500.0,0.0001406,2]
[398069443,1765354248126,-500.0,0.0001406,2]
[398069444,1765354248135,-449.90207191,0.0001406,2]
[398069445,1765354248144,-500.0,0.0001406,2]
[398069446,1765354248153,-938.61,0.0001406,2]
[398069447,1765354248162,-507.14746883,0.0001406,2]
[398069448,1765354248172,-506.52373449,0.0001406,2]
[398069449,1765354248181,-500.0,0.0001406,2]
[398069450,1765354248191,-500.0,0.0001406,2]
[398069451,1765354248200,-500.0,0.0001406,2]
[398069452,1765354248209,-600.0,0.0001406,2]
[398069453,1765354248219,-500.0,0.0001406,2]
[398069454,1765354248228,-500.0,0.0001406,2]
[398069455,1765354248238,-500.0,0.0001406,2]
[398069456,1765354248247,-500.0,0.0001406,2]
[398069457,1765354248257,-500.0,0.0001406,2]
[398069458,1765354248267,-500.0,0.0001406,2]
[398069459,1765354248276,-500.0,0.0001406,2]
[398069460,1765354248285,-1540.91,0.0001406,2]
[398069461,1765354248294,-500.0,0.0001406,2]
[398069462,1765354248305,-346.44882419,0.0001406,2]
[398069463,1765354248323,-224.43512762,0.0001406,2]
[398069464,1765354248333,-500.0,0.0001406,2]
[398069465,1765354248343,-500.0,0.0001406,2]
[398069466,1765354248352,-500.0,0.0001406,2]
[398069467,1765354248362,-500.0,0.0001406,2]
[398069468,1765354248371,-1263.49,0.0001406,2]
[398069469,1765354248387,-500.0,0.0001406,2]
[398069470,1765354248397,-500.0,0.0001406,2]
[398069471,1765354248406,-500.0,0.0001406,2]
[398069472,1765354248416,-500.0,0.0001406,2]
[398069473,1765354248425,-500.0,0.0001406,2]
[398069474,1765354248435,-500.0,0.0001406,2]
[398069475,1765354248445,-500.0,0.0001406,2]
[398069476,1765354248454,-3072.12,0.0001406,2]
[398069477,1765354248464,-500.0,0.0001406,2]
[398069478,1765354248474,-766.45,0.0001406,2]
[398069479,1765354248484,-500.0,0.0001406,2]
[398069480,1765354248493,-500.0,0.0001406,2]
[398069481,1765354248503,-500.0,0.0001406,2]
[398069482,1765354248512,-1000.0,0.0001406,2]
[398069483,1765354248522,-500.0,0.0001406,2]
[398069484,1765354248531,-500.0,0.0001406,2]
[398069485,1765354248540,-500.0,0.0001406,2]
[398069486,1765354248550,-544.4,0.0001406,2]
[398069487,1765354248560,-1169.69,0.0001406,2]
[398069488,1765354248569,-500.0,0.0001406,2]
[398069489,1765354248579,-500.0,0.0001406,2]
[398069490,1765354248589,-500.0,0.0001406,2]
[398069491,1765354248599,-500.0,0.0001406,2]
[398069492,1765354248608,-500.0,0.0001406,2]
[398069493,1765354248618,-506.01513027,0.0001406,2]
[398069494,1765354248631,-500.0,0.0001406,2]
[398069495,1765354248640,-500.0,0.0001406,2]
[398069496,1765354248650,-547.3196796,0.0001406,2]
[398069497,1765354248659,-287.70927608,0.0001406,2]
[398069498,1765354248669,-525.90243798,0.0001406,2]
[398069499,1765354248678,-500.0,0.0001406,2]
[398069500,1765354248688,-500.0,0.0001406,2]
[398069501,1765354248696,-500.0,0.0001406,2]
[398069502,1765354248706,-584.28378705,0.0001406,2]
[398069503,1765354248715,-565.46,0.0001406,2]
[398069504,1765354248725,-500.0,0.0001406,2]
[398069505,1765354248735,-500.0,0.0001406,2]
[398069506,1765354248744,-500.0,0.0001406,2]
[398069507,1765354248754,-500.0,0.0001406,2]
[398069508,1765354248763,-500.0,0.0001406,2]
[398069509,1765354248773,-500.0,0.0001406,2]
[398069510,1765354248783,-500.0,0.0001406,2]
[398069511,1765354248792,-500.0,0.0001406,2]
[398069512,1765354248803,-501.18,0.0001406,2]
[398069513,1765354248812,-500.0,0.0001406,2]
[398069514,1765354248821,-500.0,0.0001406,2]
[398069515,1765354248831,-500.0,0.0001406,2]
[398069516,1765354248841,-500.0,0.0001406,2]
[398069517,1765354248850,-500.0,0.0001406,2]
[398069518,1765354248860,-500.0,0.0001406,2]
[398069519,1765354248870,-616.74,0.0001406,2]
[398069520,1765354248879,-506.21842147,0.0001406,2]
[398069521,1765354248889,-500.0,0.0001406,2]
[398069522,1765354248898,-509.86029268,0.0001406,2]
[398069523,1765354248907,-500.0,0.0001406,2]
[398069524,1765354248917,-500.0,0.0001406,2]
[398069525,1765354248926,-500.0,0.0001406,2]
[398069526,1765354248936,-500.0,0.0001406,2]
[398069527,1765354248946,-650.53,0.0001406,2]
[398069528,1765354248955,-500.0,0.0001406,2]
[398069529,1765354248964,-500.0,0.0001406,2]
[398069530,1765354248975,-766.06,0.0001406,2]
[398069531,1765354248988,-500.0,0.0001406,2]
[398069532,1765354248998,-500.0,0.0001406,2]
[398069533,1765354249009,-500.0,0.0001406,2]
[398069534,1765354249018,-500.0,0.0001406,2]
[398069535,1765354249028,-500.0,0.0001406,2]
[398069536,1765354249038,-500.0,0.0001406,2]
[398069537,1765354249047,-500.0,0.0001406,2]
[398069538,1765354249057,-501.03903787,0.0001406,2]
[398069539,1765354249066,-500.0,0.0001406,2]
[398069540,1765354249076,-500.0,0.0001406,2]
[398069541,1765354249087,-728.26,0.0001406,2]
[398069542,1765354249096,-500.0,0.0001406,2]
[398069543,1765354249106,-500.0,0.0001406,2]
[398069544,1765354249115,-567.32,0.0001406,2]
[398069545,1765354249123,-500.0,0.0001406,2]
[398069546,1765354249132,-500.0,0.0001406,2]
[398069547,1765354249141,-500.0,0.0001406,2]
[398069548,1765354249150,-500.0,0.0001406,2]
[398069549,1765354249159,-500.0,0.0001406,2]
[398069550,1765354249168,-500.0,0.0001406,2]
[398069551,1765354249177,-500.0,0.0001406,2]
[398069552,1765354249186,-500.0,0.0001406,2]
[398069553,1765354249195,-500.0,0.0001406,2]
[398069554,1765354249204,-493.21019772,0.00014061,2]
[398069555,1765354249213,-500.0,0.00014061,2]
[398069556,1765354249223,-500.0,0.00014061,2]
[398069557,1765354249231,-500.0,0.00014061,2]
[398069558,1765354249240,-500.0,0.00014061,2]
[398069559,1765354249250,-500.0,0.00014061,2]